Cogmind - Beta 15 @@@ ROGUE MODE // 2025.07.16 @ 21:19:16 Player: Annull999 Result: Smashed by cave-in Performance ------------- Evolutions (0) 0 Regions Visited (2) 400 Robots Destroyed (10) 50 Value Destroyed (234) 234 Prototype IDs (0) 0 Alien Tech Used (0) 0 Bonus (0) 0 TOTAL SCORE: 684 Bonus ------- None Cogmind --------- Core Integrity 0/250 Matter 294/300 Energy 160/160 System Corruption 5% Temperature Cool (0) Movement Walking (190) Ox1 Location -10/Mines Parts ------- > --- POWER (1) -------- Light Nuclear Core > --- PROPULSION (2) --- Light Treads Aluminum Leg > --- UTILITY (2) ------ Small Storage Unit > --- WEAPON (2) ------- Mining Laser > --- INVENTORY (8) ---- Light Nuclear Core Light Treads Wheel Wheel Improved Heat Sink Light Armor Plating Peak State ------------ > --- POWER ------------ Light Nuclear Core > --- PROPULSION ------- Light Treads Aluminum Leg > --- UTILITY ---------- Small Storage Unit Targeting Computer > --- WEAPON ----------- Assault Rifle Light Assault Rifle > --- INVENTORY -------- Light Treads Wheel Wheel Improved Heat Sink Light Armor Plating Beam Cannon Assault Rifle Mining Laser [Rating: 10] Favorites ----------- Power Light Nuclear Core Engine Light Ion Engine Power Core Light Nuclear Core Propulsion Aluminum Leg Treads Light Treads Leg Aluminum Leg Utility Small Storage Unit Storage Small Storage Unit Processor Targeting Computer Weapon Light Assault Rifle Energy Cannon Beam Cannon Ballistic Gun Light Assault Rifle Special Weapon Mining Laser Build | -11 -10 -10 ------- Run | Yrd Mat Min Slots Evolved . | . . . Power . | . . . Propulsion . | . . . Utility . | . . . Weapon . | . . . Parts Attached 6 | . 1 5 Power 1 | . . 1 Engine . | . . . Core 1 | . . 1 Reactor . | . . . Propulsion 1 | . . 1 Treads 1 | . . 1 Leg . | . . . Wheel . | . . . Hover . | . . . Flight . | . . . Utility 1 | . 1 . Device . | . . . Storage . | . . . Processor 1 | . 1 . Hackware . | . . . Protection . | . . . Artifact . | . . . Weapon 3 | . . 3 Energy Gun . | . . . Energy Cannon 1 | . . 1 Ballistic Gun 1 | . . 1 Ballistic Cannon . | . . . Launcher . | . . . Special Weapon 1 | . . 1 Impact Weapon . | . . . Slashing Weapon . | . . . Piercing Weapon . | . . . Special Melee Weapon . | . . . Unidentified Prototypes . | . . . Parts Lost 7 | . . 7 Power 1 | . . 1 Propulsion 1 | . . 1 Utility 1 | . . 1 Weapon 4 | . . 4 Highest Loss Streak 4 | . . 4 To Critical Strikes . | . . . Average Backups 7 | . 6 7 Power . | . 1 . Propulsion 3 | . 4 3 Utility 1 | . . 1 Weapon 2 | . 1 2 Tool/Special . | . . . Unused Backups 17 | . 7 10 Power 4 | . 2 2 Propulsion 6 | . 2 4 Utility 3 | . 1 2 Weapon 4 | . 2 2 Tool/Special . | . . . Average Slot Usage (%) 97 | . 89 99 Engine 3 | . 14 1 Core 10 | . . 11 Treads 10 | . . 11 Leg 17 | . 28 16 Storage 14 | . 14 14 Processor 12 | . 3 14 Ballistic Gun 27 | . 28 27 Peak Build Rating 10 | . 8 10 Average Rating 8 | . 6 9 On Entrance 6 | 6 6 8 Naked Turns . | . . . Heaviest Build 14 | 11 11 14 Greatest Support 20 | 20 20 20 Greatest Overweight (x) 1 | . . 1 Average Overweight (x) . | . . . Largest Inventory Capacity 8 | . 8 8 Average Capacity 8 | . 8 8 Most Carried 8 | . 8 8 Average Carried 7 | . 6 7 Final Capacity 8 | 8 8 8 Final Carried 8 | 6 8 6 Class Distribution -------------------- 100% | Mutant Dominant Class ---------------- Mutant | -10/Materials Mutant | -10/Mines Resources | -11 -10 -10 ----------- Run | Yrd Mat Min Matter Collected 360 | 200 32 128 Remotely . | . . . Salvage Created 243 | . 117 126 Parts 20 | . 8 12 Haulers Intercepted . | . . . Recyclers Shooed . | . . . Parts Field Recycled . | . . . Retrieved Matter . | . . . Parts Self-Destructed . | . . . Prevented . | . . . Kills | -11 -10 -10 ------- Run | Yrd Mat Min Combat Hostiles Destroyed 9 | . 2 7 Guns 8 | . 2 6 Cannons 1 | . . 1 Classes Destroyed 4 | . 2 2 Watcher 1 | . 1 . Swarmer 5 | . . 5 Grunt 3 | . 2 1 Demolisher 1 | . . 1 Best Kill Streak 3 | . 3 3 Combat Bots Only 3 | . 2 3 Max Kills in Single Turn 2 | . 1 2 Gunslinging 1 | . . 1 Exploded . | . . . Melee . | . . . Uniques/NPCs Destroyed . | . . . Combat | -11 -10 -10 -------- Run | Yrd Mat Min Hostile Shots Fired 86 | . 13 73 Missed 21 | . 3 18 Hits 65 | . 10 55 Projectile 65 | . 10 55 AOE 9 | . . 9 Critical Strikes 1 | . . 1 Damage Taken 1140 | . 119 1021 Core 273 | . 47 226 Absorbed by Shields . | . . . Core Remaining (%) 100 | 100 . . Volleys Fired 38 | . 8 30 Largest 2 | . 2 2 Hottest 80 | . 40 80 Shots Fired 74 | . 16 58 Gun 72 | . 16 56 Cannon 2 | . . 2 Launcher . | . . . Special . | . . . Kinetic 72 | . 16 56 Thermal 2 | . . 2 Explosive . | . . . Electromagnetic . | . . . Robot Hit Streak 7 | . 6 7 Robot Miss Streak 5 | . 3 5 Penetration Max . | . . . Secondary Targets 2 | . . 2 Max Gunslinging Chain 1 | . . 1 Shots Hit Robots 39 | . 11 28 Core Hits 20 | . 7 13 Critical Kills . | . . . Critical Parts Destroyed . | . . . Critical Strikes . | . . . Melee Attacks . | . . . Impact . | . . . Slashing . | . . . Piercing . | . . . Sneak Attacks . | . . . Combat Hostiles . | . . . Follow-up Attacks . | . . . Damage Inflicted 476 | . 110 366 Guns 440 | . 110 330 Cannons 36 | . . 36 Explosions . | . . . Melee . | . . . Ramming . | . . . Kinetic 440 | . 110 330 Thermal 36 | . . 36 Explosive . | . . . Electromagnetic . | . . . Impact . | . . . Slashing . | . . . Piercing . | . . . Highest Corruption . | . . . Average Corruption . | . . . Corruption Purged . | . . . Corruption Blocked . | . . . Overload Shots . | . . . Overflow Damage . | . . . Projectiles . | . . . Explosions . | . . . Melee . | . . . Knockbacks . | . . . Impact . | . . . Kinetic . | . . . Secondary . | . . . Self-Inflicted Damage . | . . . Shots . | . . . Rammed . | . . . Targets Rammed 1 | . . 1 Kicked 1 | . . 1 Crushed . | . . . Highest Temperature 50 | . 9 50 Average Temperature 13 | . 7 15 Received Heat Transfer 120 | . 60 60 Siege Activations . | . . . Martial Activations . | . . . Shielding Activations . | . . . Robots Disrupted . | . . . Combat Hostiles . | . . . Robots Corrupted . | . . . Combat Hostiles . | . . . Parts Fried . | . . . Impact Corruptions . | . . . Robots Melted . | . . . Combat Hostiles . | . . . Parts Melted . | . . . Heat Transferred 74 | . . 74 Parts Sabotaged . | . . . Parts Stolen . | . . . Parts Stripped . | . . . Power Chain Reactions . | . . . Alert | -11 -10 -10 ------- Run | Yrd Mat Min Maximum Alert Level . | . . . Low Security (%) 100 | . 100 100 Level 1 . | . . . Level 2 . | . . . Level 3 . | . . . Level 4 . | . . . Level 5 . | . . . High Security . | . . . Max Security . | . . . Peak Influence 67 | . 57 67 Initial 10 | . . 10 Average 17 | . 24 16 Influence Increases 302 | . 69 233 Destroy 0b10 Robot/C 180 | . 40 140 Destroy 0b10 Robot/NC 5 | . 5 . Destroy Leader 32 | . 12 20 Successful Hack 25 | . 12 13 Lose Combat Pursuer 60 | . . 60 Influence Decreases 292 | . 42 250 Entered New Map 17 | . . 17 Time Decay 235 | . 42 193 Lost Part 40 | . . 40 Squads Dispatched 1 | . 1 . Investigation 1 | . 1 . Extermination . | . . . Reinforcement . | . . . Assault . | . . . Garrison . | . . . Intercept . | . . . Searches Triggered . | . . . Construction Impeded . | . . . Haulers Reinforced . | . . . Active Scanning Responses . | . . . Cargo Convoy Interrupts . | . . . Stealth | -11 -10 -10 --------- Run | Yrd Mat Min Distress Signals 3 | . 2 1 Communications Jammed . | . . . Distress Signals . | . . . Times Spotted 26 | . 10 16 Peak Tracking Total 7 | . 7 4 Tactical Retreats 4 | . . 4 Traps | -11 -10 -10 ------- Run | Yrd Mat Min Traps Triggered . | . . . Indirectly . | . . . Trap Hack Attempts . | . . . Triggered . | . . . Disarmed . | . . . Reprogrammed . | . . . Reused . | . . . Traps Extracted . | . . . Installed . | . . . Triggered . | . . . Machines | -11 -10 -10 ---------- Run | Yrd Mat Min Machines Disabled . | . . . Max in Single Turn . | . . . Machines Repaired . | . . . Machines Dismantled . | . . . Machines Sabotaged . | . . . Overloaded Fab Kills . | . . . Hacking | -11 -10 -10 --------- Run | Yrd Mat Min Machines Accessed 3 | . 2 1 Terminals 3 | . 2 1 Fabricators . | . . . Repair Stations . | . . . Recycling Units . | . . . Scanalyzers . | . . . Garrison Access . | . . . Total Hacks 12 | . 10 2 Successful 6 | . 4 2 Failed 6 | . 6 . Catastrophic 2 | . 2 . Database Lockouts . | . . . Manual 8 | . 8 . Terminals 12 | . 10 2 Fabricators . | . . . Repair Stations . | . . . Recycling Units . | . . . Scanalyzers . | . . . Garrison Access . | . . . Terminal Hacks 4 | . 2 2 Level Access Points 2 | . 1 1 Zone Layout 2 | . 1 1 Fabricator Hacks . | . . . Repair Station Hacks . | . . . Recycling Unit Hacks . | . . . Scanalyzer . | . . . Garrison Access Hacks . | . . . Unauthorized Hacks 2 | . 2 . Terminals 2 | . 2 . Botnet 2 | . 2 . Fabricators . | . . . Repair Stations . | . . . Recycling Units . | . . . Scanalyzers . | . . . Garrison Access . | . . . Data Cores Recovered . | . . . Used . | . . . Hacking Detections 2 | . 2 . Full Trace Events 1 | . 1 . Feedback Events . | . . . Feedback Blocked . | . . . Robot Schematics Acquired . | . . . Robots Built . | . . . Authchips . | . . . Time . | . . . Total Robot Build Rating . | . . . Part Schematics Acquired . | . . . Parts Built . | . . . Authchips . | . . . Time . | . . . Total Part Build Rating . | . . . Parts Repaired . | . . . Time . | . . . Parts Recycled . | . . . Recycled Matter . | . . . Retrieved Matter . | . . . Retrieved Components . | . . . Parts Scanalyzed . | . . . Part Schematics Acquired . | . . . Parts Damaged . | . . . Bothacking | -11 -10 -10 ------------ Run | Yrd Mat Min Used RIF Installer . | . . . Robots Hacked . | . . . Non-combat . | . . . Combat . | . . . Robot Hacks Applied . | . . . Relay Couplers Released . | . . . Fabnet Peak Effective % . | . . . Robots Rewired . | . . . Allies Hacked . | . . . Hacks Repelled . | . . . Allies | -11 -10 -10 -------- Run | Yrd Mat Min Total Allies . | . . . Largest Group . | . . . Highest-Rated Group . | . . . Highest-Rated Ally . | . . . Total Orders . | . . . Ally Attacks . | . . . Total Damage . | . . . Kills . | . . . Allies Corrupted . | . . . Allies Melted . | . . . Intel | -11 -10 -10 ------- Run | Yrd Mat Min Active Infowar (turns) . | . . . Robot Analysis Total . | . . . Derelict Logs Recovered 1 | . . 1 Drone Launches . | . . . Drone Recoveries . | . . . Exploration | -11 -10 -10 ------------- Run | Yrd Mat Min Turns Passed 819 | . 101 718 Spaces Moved 408 | 1 60 347 Core . | . . . Treads . | . . . Legs 408 | 1 60 347 Wheels . | . . . Hover . | . . . Flight . | . . . Fastest Speed 120 | 120 120 120 Average Speed 169 | 120 120 178 Slowest Speed 190 | 120 120 190 Overloaded Moves . | . . . Propulsion Burnouts . | . . . Robots Hopped . | . . . Potential Cave-ins . | . . . Cave-ins Triggered 1 | . . 1 Exploration Rate (%) 28 | 2 22 61 Regions Visited 2 Branch Regions 1 Pre-discovered Areas 1 | . . 1 Known Exits Taken . | . . . Unknown Exits Taken 2 | 1 1 . Scrap Searched 2 | . . 2 Spaces Dug . | . . . Terrain Destroyed . | . . . Melee . | . . . Projectile . | . . . AOE . | . . . Terrain Rammed . | . . . Walls Destroyed . | . . . Machines Disabled . | . . . Actions | -11 -10 -10 --------- Run | Yrd Mat Min Total 469 | . 75 394 Wait 8 | . . 8 Move 406 | . 59 347 Hop . | . . . Pick Up 8 | . 5 3 Fast Attach . | . . . Attach 6 | . 1 5 Detach . | . . . Swap . | . . . Drop 2 | . 2 . Fire 38 | . 8 30 Melee . | . . . Ram . | . . . Kick 1 | . . 1 Crush . | . . . Escape Stasis . | . . . Rewire . | . . . Trap . | . . . Miscellaneous . | . . . Route ------- -11/Scrapyard -10/Materials (discovered 4 exits: Mat x3 / *Min) -10/Mines (discovered 2 exits: *Mat x2) History --------- Turn | Location | Event 1 | -11/Scrapyard | Discovered new exit (range 0) 1 | -11/Scrapyard | Entered Materials 23 | -10/Materials | Identified exit to Materials 88 | -10/Materials | Discovered new exit (range 12) 102 | -10/Materials | Entered Mines 162 | -10/Mines | Learned location of Storage (-8) 223 | -10/Mines | Discovered exit to Materials (range 8) 315 | -10/Mines | Build established: Mutant 640 | -10/Mines | Core integrity fell below 50% 751 | -10/Mines | Assembled infested the area 756 | -10/Mines | Assisted by a Guerilla fighting off Assembled 821 | -10/Mines | Crushed by falling debris 821 | -10/Mines | Smashed by cave-in Last Messages --------------- 00773_ K-01 Serf collects debris. 00774_ The unstable cave ceiling collapses. 00775_ KF-3GF(h) destroyed. 00783_ K-01 Serf collects debris. 00787_ K-01 Serf destroyed. 00790_ as-69973 destroyed. 00793_ as-23679 destroyed. 00796_ as-76901 destroyed. 00802_ D-53 Grenadier destroyed. 00805_ The unstable cave ceiling collapses. 00806_ Assault Rifle destroyed. 00808_ The unstable cave ceiling collapses. 00810_ Lgt. Assault Rifle destroyed. 00811_ D-53 Grenadier destroyed. 00812_ The unstable cave ceiling collapses. 00821_ Crushed by falling debris. 00821_ Targeting Computer destroyed. 00821_ System corrupted by crushing effect (+3). 00821_ Beam Cannon destroyed. 00821_ System corrupted by crushing effect (+2). Map ----- +----------------------------------------------------+ | ?# #????# #?????? #?????### #????# # | | ?## #?????# ##?????### ##??????# #????# # | | ??####??????## #####???# #??????# #????# # | | ?????????????# ##??## #??????# #????# # | | ?????????????# #???### #??????# #????# # | | ?????????????## ##????## ##?????# #????# # | | ??????????????## ####### #?????# #????# # | | ???????????????## #?????# ###??# # | | ???????????????## #?????# #??# # | | ???????????????# ###### ##?????###=#??# # | | ??????????????# ### #????# ##????????#*#??# # | | ?????????????# ##?# #???## #??????####%##?# | | ?????????????# #??# #???# ##?????# [==[#?### | | ?????????????# ??# #???# ##???## """[#???? | | ?????????????# ??# #???## ##??#T """=#???? | | ?????????????## ## ??# #????### ##?## """ #???? | | ??????????????###??#### #??????## #??# #???? | | ???????????????????## ####???## #??#######???? | | ??????????????????## ##### ##??????####### | | ??????????????????# ##???##### | | ?????????????##???# # #????# | | ?????????????# #### % #????# | | ?????????????# = t #;#??# # ## | | ?????????????# # ##### ## #? | | ?????????????## # % ##### ## | | ???????????### @ # #?# | | ???????????# # # ########?# | | ???????????# ## ##????????# | | ???????????# a #####?????????# < " | | ??????????# ##?????????????# " | | ??????????# ##??????????????# " | | ??????????# a # ##???????????????###### | | ??????????# ## ### ##?????????????????????? | | ??????????## #?####??## #?????????????????????? | | ???????????# #????????## #?????????????????????? | | ???????????# ??????????###?????????????????????? | | ??????????? ??????????????????????????????????? | | ?????????? ??????????????????????????????????? | | ?????????? ??????????????????????????????????? | | ????????? ??????????????????????????????????? | | ????????## ??????????????????????????????????? | | ?????????## #?????????????????????????????????? | | ?????????? ?????????????????????????????????? | | ?????????? ?????????????????????????????????? | | ??????????##### ?????????????????????????????????? | | ??????????????? ?????????????????????????????????? | | ??????????????? ?????????????????????????????????? | | ?????????????????????????????????????????????????? | | ?????????????????????????????????????????????????? | | ?????????????????????????????????????????????????? | +----------------------------------------------------+ Best States ------------- Heat Dissipation 25 Energy Generation 14 Energy Capacity 160 Matter Stores 300 Matter Capacity 300 Sight Range 16 Terrain Scan Density 10 Evasion (%) 55 Targeting Accuracy 5 Recoil Reduction 1 Item Schematics ----------------- None Robot Schematics ------------------ None Fabricated ------------ Nothing Repaired ---------- Nothing Alien Tech Used ----------------- None Achievements -------------- None Challenges ------------ None Game ------ Seed ZioniteThermicChronowheel Manual? 0 Play Time 00:09:24 Cumulative 22.5 hours Start 2025.07.15 @ 21:22:13 End 2025.07.16 @ 21:19:16 Sessions 2 Manual Loads 0 Difficulty Rogue Special Mode None Game No. 39 Rogue 39 Adventurer 0 Explorer 0 Win Type - Total 0 Types 0/0/0/0/0/0/0/0/0/0 Lore% 6 Gallery% 19 Achievement% 20 Wizard Run 0 Options --------- Layout 0 ASCII 1 Keyboard 0 Movement Numpad Keybinds 0 Fullscreen 1 Font 18/TerminusBold Map View 76x50 Zoom Use 72% Tactical HUD 1 Map Filters NONE Filters NONE Steam 1 RUN: fd4d7ac5-8c95-4c97-9c3e-b515b45694de